[Event "ECo-C Extraliga 2023-24"]
[Site "Slovakia"]
[Date "2024.02.24"]
[Round "7"]
[White "Molnar, Erno"]
[Black "Straka, Jozef"]
[Result "1/2-1/2"]
[ECO "C50"]
[WhiteElo "2256"]
[BlackElo "2272"]
[Annotator "TA"]
[PlyCount "55"]
[EventDate "2023.10.06"]
[EventType "team-tourn"]
[EventCountry "SVK"]
[SourceTitle "playchess.com"]
[Source "ChessBase"]
[SourceQuality "1"]
[TimeControl "40/5400+30:1800+30"]

{[%evp 16,55,27,0,14,0,11,-3,1,0,0,0,0,-12,27,26,29,31,27,27,24,26,54,38,44,26,25,16,17,16,13,12,43,29,25,25,36,0,20,15,17,20]} 1. e4 {[%emt 0:00:03]} e5 {[%emt 0:00:02]} 2. Bc4 {[%emt 0:05:06]} Nc6 {[%emt 0:01:29]} 3. Nf3 {[%emt 0:01:12]} Be7 {[%emt 0:00:18]} 4. d4 {[%emt 0:14:32]} exd4 {[%emt 0:00:03]} 5. Nxd4 {[%emt 0:18:49]} d6 {[%emt 0:05:28]} 6. Nxc6 {[%emt 0:08:41]} bxc6 {[%emt 0:00:08]} 7. O-O {[%emt 0:01:06]} Nf6 {[%emt 0:04:16]} 8. Nc3 {[%emt 0:05:21]} O-O {[%emt 0:00:42]} 9. Bb3 {[%emt 0:06:39]} Nd7 {[%emt 0:02:16]} 10. Be3 {[%emt 0:11:35]} Bf6 {[%emt 0:07:43]} 11. Bd4 {[%emt 0:03:09]} Nb6 {[%emt 0:19:36]} 12. a4 {[%emt 0:05:40]} a5 {[%emt 0:02:40]} 13. Re1 {[%emt 0:01:08]} Qe7 {[%emt 0:11:21]} 14. Qd2 {[%emt 0:08:36]} Be6 {[%emt 0:12:41]} 15. Bxe6 {[%emt 0:00:50]} Qxe6 {[%emt 0:00:07]} 16. Bxf6 {[%emt 0:01:18]} Qxf6 {[%emt 0:00:32]} 17. b3 {[%emt 0:00:21] Es drohte Nc4} Rfe8 {[%emt 0:01:58]} 18. Rad1 {[%emt 0:01:30]} Re6 {[%emt 0:02:20]} 19. Re3 {[%emt 0:03:03]} Rae8 {[%emt 0:04:39]} 20. h3 {[%emt 0:00:23]} h6 {[%emt 0:01:53]} 21. Rf3 {[%emt 0:01:09]} Qe7 {[%emt 0:02:44]} 22. Qd3 {[%emt 0:00:22]} Re5 {[%emt 0:05:09]} 23. Rg3 {[%emt 0:00:35]} Rg5 {[%emt 0:05:44]} 24. Rxg5 {[%emt 0:00:29]} Qxg5 {[%emt 0:00:01]} 25. Ne2 {[%emt 0:00:32]} Qe5 {[%emt 0:05:16][%cal Of7f5]} 26. Nc3 {[%emt 0:00:41]} Re6 {[%emt 0:01:52]} 27. Qd4 {[%emt 0:00:21]} Qg5 {[%emt 0:01:47]} 28. Qd2 {[%emt 0:00:15] Gewichteter Fehlerwert: Weiß=0.08 (makellos) /Schwarz=0.09 (makellos) .  Ungenau:       	Weiß=1     	Schwarz=3     OK:         	Weiß=7     	Schwarz=4} 1/2-1/2

[Event "ECo-C Extraliga 2023-24"]
[Site "Slovakia"]
[Date "2024.02.24"]
[Round "7"]
[White "Terbe, Zsuzsanna"]
[Black "Bulej, Matej"]
[Result "1-0"]
[ECO "D25"]
[WhiteElo "2170"]
[BlackElo "2013"]
[Annotator "RC"]
[PlyCount "45"]
[EventDate "2023.10.06"]
[EventType "team-tourn"]
[EventCountry "SVK"]
[SourceTitle "playchess.com"]
[Source "ChessBase"]
[SourceQuality "1"]
[TimeControl "40/5400+30:1800+30"]

1. d4 {[%emt 0:00:03]} d5 {[%emt 0:00:01]} 2. c4 {[%emt 0:00:10]} dxc4 {[%emt 0:00:03]} 3. Nf3 {[%emt 0:00:15]} Nf6 {[%emt 0:00:17]} 4. e3 {[%emt 0:00:07]} a6 {[%emt 0:00:07]} 5. Bxc4 {[%emt 0:00:08]} e6 {[%emt 0:00:05]} 6. O-O {[%emt 0:00:10]} c5 {[%emt 0:00:08]} 7. dxc5 {[%emt 0:00:09]} Bxc5 {[%emt 0:00:14]} 8. Qxd8+ {[%emt 0:00:30]} Kxd8 {[%emt 0:00:04]} 9. Ne5 {[%emt 0:01:56]} Ke7 {[%emt 0:00:59]} 10. Be2 {[%emt 0:00:10]} b5 {[%emt 0:14:58]} 11. a4 {[%emt 0:00:49]} bxa4 {[%emt 0:03:53]} 12. Nc3 {[%emt 0:06:38]} Bb7 {[%emt 0:04:21]} 13. Nxa4 {[%emt 0:00:27]} Ba7 {[%emt 0:01:09]} 14. b3 {[%emt 0:05:03]} Bd5 {[%emt 0:11:12]} 15. Ba3+ {[%emt 0:02:01]} Ke8 {[%emt 0:00:05]} 16. Rfc1 {[%emt 0:03:06]} Nbd7 {[%emt 0:01:37]} 17. Nc4 {[%emt 0:04:26]} Ne4 {[%emt 0:08:56]} 18. Bf3 {[%emt 0:01:46]} Ndc5 {[%emt 0:05:47]} 19. Ncb6 {[%emt 0:11:38]} Rb8 {[%emt 0:07:59]} 20. Bxc5 {[%emt 0:06:27]} Nxc5 {[%emt 0:00:51]} 21. Rxc5 {[%emt 0:00:21]} Bxb3 {[%emt 0:01:42]} 22. Rc3 {[%emt 0:07:29]} Bxa4 {[%emt 0:04:16]} 23. Nxa4 {[%emt 0:00:08]} 1-0

[Event "ECo-C Extraliga 2023-24"]
[Site "Slovakia"]
[Date "2024.02.24"]
[Round "7"]
[White "Kubala, Jan"]
[Black "Szegi, Tamas"]
[Result "1/2-1/2"]
[ECO "B42"]
[WhiteElo "2123"]
[BlackElo "2149"]
[Annotator "NA"]
[PlyCount "39"]
[EventDate "2023.10.06"]
[EventType "team-tourn"]
[EventCountry "SVK"]
[SourceTitle "playchess.com"]
[Source "ChessBase"]
[SourceQuality "1"]
[TimeControl "40/5400+30:1800+30"]

1. e4 {[%emt 0:00:09]} c5 {[%emt 0:02:18]} 2. Nf3 {[%emt 0:00:17]} e6 {[%emt 0:00:27]} 3. d4 {[%emt 0:01:29]} cxd4 {[%emt 0:00:08]} 4. Nxd4 {[%emt 0:00:08]} a6 {[%emt 0:00:52]} 5. Bd3 {[%emt 0:02:14]} Qc7 {[%emt 0:05:25]} 6. O-O {[%emt 0:04:50]} Nf6 {[%emt 0:07:19]} 7. Qe2 {[%emt 0:07:56]} h5 {[%emt 0:11:39]} 8. Kh1 {[%emt 0:15:56]} Bc5 {[%emt 0:19:17]} 9. Nb3 {[%emt 0:12:08]} Ng4 {[%emt 0:04:13]} 10. f4 {[%emt 0:02:51]} Ba7 {[%emt 0:01:07]} 11. Nc3 {[%emt 0:11:35]} b5 {[%emt 0:05:48]} 12. e5 {[%emt 0:00:50]} Bb7 {[%emt 0:09:05]} 13. Ne4 {[%emt 0:03:45]} Bxe4 {[%emt 0:05:11]} 14. Bxe4 {[%emt 0:00:57]} Nc6 {[%emt 0:00:21]} 15. Bd2 {[%emt 0:02:06]} Qb6 {[%emt 0:06:17]} 16. Be1 {[%emt 0:03:52]} Rc8 {[%emt 0:06:04]} 17. Rd1 {[%emt 0:04:56]} Qe3 {[%emt 0:02:51]} 18. Qf3 {[%emt 0:04:00]} Qxf3 {[%emt 0:05:12]} 19. Rxf3 {[%emt 0:00:09]} f5 {[%emt 0:03:02]} 20. exf6 {[%emt 0:01:50]} 1/2-1/2

[Event "ECo-C Extraliga 2023-24"]
[Site "Slovakia"]
[Date "2024.02.24"]
[Round "7.1"]
[White "Saric, Ivan"]
[Black "Nemeth, Miklos"]
[Result "1/2-1/2"]
[ECO "C93"]
[WhiteElo "2689"]
[BlackElo "2440"]
[Annotator "RC"]
[PlyCount "126"]
[EventDate "2023.10.06"]
[EventType "team-tourn"]
[EventCountry "SVK"]
[SourceTitle "playchess.com"]
[Source "ChessBase"]
[SourceQuality "1"]
[TimeControl "40/5400+30:1800+30"]

1. e4 {[%emt 0:00:04]} e5 {[%emt 0:00:04]} 2. Nf3 {[%emt 0:00:04]} Nc6 {[%emt 0:00:09]} 3. Bb5 {[%emt 0:01:37]} a6 {[%emt 0:00:07]} 4. Ba4 {[%emt 0:00:03]} Nf6 {[%emt 0:00:05]} 5. O-O {[%emt 0:00:03]} Be7 {[%emt 0:00:30]} 6. Re1 {[%emt 0:01:00]} b5 {[%emt 0:00:17]} 7. Bb3 {[%emt 0:00:33]} d6 {[%emt 0:00:06]} 8. c3 {[%emt 0:00:00]} O-O {[%emt 0:00:28]} 9. h3 {[%emt 0:00:00]} a5 {[%emt 0:03:05]} 10. d4 {[%emt 0:03:38]} Bd7 {[%emt 0:00:47]} 11. a3 {[%emt 0:06:00]} a4 {[%emt 0:06:17]} 12. Bc2 {[%emt 0:04:16]} Re8 {[%emt 0:02:32]} 13. Be3 {[%emt 0:08:31]} h6 {[%emt 0:03:32]} 14. Nbd2 {[%emt 0:00:12]} Bf8 {[%emt 0:00:19]} 15. Qe2 {[%emt 0:19:07]} Qb8 {[%emt 0:06:27]} 16. Rad1 {[%emt 0:01:42]} Qb7 {[%emt 0:02:15]} 17. g4 {[%emt 0:02:59]} Nh7 {[%emt 0:10:54]} 18. Nf1 {[%emt 0:02:01]} Rad8 {[%emt 0:03:30]} 19. Ng3 {[%emt 0:00:37]} Na5 {[%emt 0:00:21]} 20. Kh2 {[%emt 0:01:33]} c5 {[%emt 0:05:28]} 21. d5 {[%emt 0:02:44]} b4 {[%emt 0:03:56]} 22. cxb4 {[%emt 0:07:28]} cxb4 {[%emt 0:00:04]} 23. Bd2 {[%emt 0:01:10]} bxa3 {[%emt 0:03:22]} 24. bxa3 {[%emt 0:00:04]} Nb3 {[%emt 0:05:21]} 25. Bb4 {[%emt 0:00:19]} Rc8 {[%emt 0:07:57]} 26. Bd3 {[%emt 0:00:22]} Qb6 {[%emt 0:00:44]} 27. Nf5 {[%emt 0:00:30]} Ng5 {[%emt 0:06:34]} 28. Nxg5 {[%emt 0:01:06]} hxg5 {[%emt 0:00:14]} 29. Qe3 {[%emt 0:00:44]} Qxe3 {[%emt 0:00:56]} 30. Nxe3 {[%emt 0:03:41]} Red8 {[%emt 0:04:35]} 31. Nc4 {[%emt 0:03:15]} Be8 {[%emt 0:10:47]} 32. Kg2 {[%emt 0:00:48]} g6 {[%emt 0:02:07]} 33. Na5 {[%emt 0:01:54]} Nd4 {[%emt 0:01:29]} 34. Rc1 {[%emt 0:00:49]} f5 {[%emt 0:05:48]} 35. gxf5 {[%emt 0:03:43]} gxf5 {[%emt 0:00:04]} 36. exf5 {[%emt 0:00:09]} Bf7 {[%emt 0:02:16]} 37. Be4 {[%emt 0:00:05]} Rxc1 {[%emt 0:01:28]} 38. Rxc1 {[%emt 0:00:03]} Ne2 {[%emt 0:00:06]} 39. Nc6 {[%emt 0:03:45]} Ra8 {[%emt 0:02:30]} 40. Rd1 {[%emt 0:00:21]} Nf4+ {[%emt 0:00:40]} 41. Kh2 {[%emt 0:31:08]} Kg7 {[%emt 0:06:30]} 42. f3 {[%emt 0:00:00]} Rc8 {[%emt 0:06:26]} 43. Kg3 {[%emt 0:00:00]} Kf6 {[%emt 0:04:23]} 44. Ba5 {[%emt 0:00:00]} Be7 {[%emt 0:07:52]} 45. Bd2 {[%emt 0:00:00]} Bd8 {[%emt 0:01:00]} 46. Nxd8 {[%emt 0:01:43]} Rxd8 {[%emt 0:00:06]} 47. Bb4 {[%emt 0:00:52]} Ke7 {[%emt 0:02:03]} 48. Bd2 {[%emt 0:04:55]} Kf6 {[%emt 0:00:38]} 49. Bxf4 {[%emt 0:00:38]} exf4+ {[%emt 0:00:15]} 50. Kf2 {[%emt 0:00:57]} Rb8 {[%emt 0:00:52]} 51. Rc1 {[%emt 0:02:16]} Ke5 {[%emt 0:03:35]} 52. Rc4 {[%emt 0:04:23]} Bxd5 {[%emt 0:01:29]} 53. Bxd5 {[%emt 0:00:10]} Kxd5 {[%emt 0:00:05]} 54. Re4 {[%emt 0:01:38]} Rf8 {[%emt 0:00:32]} 55. h4 {[%emt 0:01:12]} gxh4 {[%emt 0:00:43]} 56. Rxf4 {[%emt 0:00:06]} h3 {[%emt 0:00:27]} 57. Rxa4 {[%emt 0:02:54]} h2 {[%emt 0:00:49]} 58. Rh4 {[%emt 0:00:46]} Ra8 {[%emt 0:00:39]} 59. Rxh2 {[%emt 0:03:12]} Ke5 {[%emt 0:00:16]} 60. Kg3 {[%emt 0:03:02]} Rg8+ {[%emt 0:00:04]} 61. Kf2 {[%emt 0:00:19]} Ra8 {[%emt 0:00:05]} 62. Rh6 {[%emt 0:00:42]} Kxf5 {[%emt 0:00:07]} 63. Rxd6 {[%emt 0:00:03]} Rxa3 {[%emt 0:00:07]} 1/2-1/2

[Event "ECo-C Extraliga 2023-24"]
[Site "Slovakia"]
[Date "2024.02.24"]
[Round "7.1"]
[White "Babula, Vlastimil"]
[Black "Chlpik, Martin"]
[Result "1-0"]
[ECO "A59"]
[WhiteElo "2535"]
[BlackElo "2281"]
[Annotator "ChessBase"]
[PlyCount "71"]
[EventDate "2023.10.06"]
[EventType "team-tourn"]
[EventCountry "SVK"]
[SourceTitle "playchess.com"]
[Source "ChessBase"]
[SourceQuality "1"]
[TimeControl "40/5400+30:1800+30"]

1. d4 {[%emt 0:00:09]} Nf6 {[%emt 0:00:05]} 2. c4 {[%emt 0:00:14]} c5 {[%emt 0:00:03]} 3. d5 {[%emt 0:00:22]} b5 {[%emt 0:00:04]} 4. cxb5 {[%emt 0:00:28]} a6 {[%emt 0:00:03]} 5. bxa6 {[%emt 0:00:36]} g6 {[%emt 0:00:04]} 6. Nc3 {[%emt 0:00:34]} Bxa6 {[%emt 0:00:04]} 7. e4 {[%emt 0:00:53]} Bxf1 {[%emt 0:00:04]} 8. Kxf1 {[%emt 0:00:08]} d6 {[%emt 0:00:09]} 9. g3 {[%emt 0:00:41]} Bg7 {[%emt 0:00:04]} 10. Kg2 {[%emt 0:00:17]} O-O {[%emt 0:00:03]} 11. Nf3 {[%emt 0:00:25]} Qb6 {[%emt 0:00:11]} 12. Qe2 {[%emt 0:02:44]} Qa6 {[%emt 0:00:07]} 13. Re1 {[%emt 0:05:12]} Nfd7 {[%emt 0:10:45]} 14. Nb5 {[%emt 0:05:05]} Qb7 {[%emt 0:02:35]} 15. a4 {[%emt 0:02:07]} Nb6 {[%emt 0:04:19]} 16. a5 {[%emt 0:02:21]} N6d7 {[%emt 0:00:08]} 17. Bd2 {[%emt 0:04:06]} Na6 {[%emt 0:23:10]} 18. Bc3 {[%emt 0:01:10]} Nb4 {[%emt 0:00:40]} 19. Bxb4 {[%emt 0:15:00]} cxb4 {[%emt 0:00:04]} 20. Nbd4 {[%emt 0:00:31]} Rfc8 {[%emt 0:13:32]} 21. Nc6 {[%emt 0:05:29]} Rxc6 {[%emt 0:00:26]} 22. dxc6 {[%emt 0:00:21]} Qxc6 {[%emt 0:00:04]} 23. Rec1 {[%emt 0:15:59]} Nc5 {[%emt 0:00:45]} 24. Rc4 {[%emt 0:01:01]} Qa6 {[%emt 0:11:30]} 25. e5 {[%emt 0:10:42]} dxe5 {[%emt 0:01:46]} 26. Re1 {[%emt 0:04:50]} Qxa5 {[%emt 0:14:23]} 27. Rec1 {[%emt 0:03:57]} Qa6 {[%emt 0:03:39]} 28. Qe3 {[%emt 0:01:38]} e4 {[%emt 0:02:05]} 29. Nd4 {[%emt 0:03:26]} Bxd4 {[%emt 0:00:25]} 30. Rxd4 {[%emt 0:00:36]} Nd3 {[%emt 0:00:53]} 31. Rc7 {[%emt 0:01:42]} Qf6 {[%emt 0:04:44]} 32. Rxe4 {[%emt 0:00:58]} Nxf2 {[%emt 0:00:41]} 33. Qxf2 {[%emt 0:01:35]} Qd6 {[%emt 0:00:27]} 34. Rcxe7 {[%emt 0:01:10]} Qd5 {[%emt 0:00:08]} 35. Qd4 {[%emt 0:01:47]} Qc6 {[%emt 0:00:18]} 36. Qc4 {[%emt 0:00:42]} 1-0

[Event "ECo-C Extraliga 2023-24"]
[Site "Slovakia"]
[Date "2024.02.24"]
[Round "7.1"]
[White "Ponizil, Cyril"]
[Black "Aczel, Gergely"]
[Result "1/2-1/2"]
[ECO "B12"]
[WhiteElo "2467"]
[BlackElo "2481"]
[Annotator "ChessBase"]
[PlyCount "52"]
[EventDate "2023.10.06"]
[EventType "team-tourn"]
[EventCountry "SVK"]
[SourceTitle "playchess.com"]
[Source "ChessBase"]
[SourceQuality "1"]
[TimeControl "40/5400+30:1800+30"]

1. e4 {[%emt 0:00:03]} c6 {[%emt 0:00:06]} 2. d4 {[%emt 0:00:04]} d5 {[%emt 0:00:05]} 3. e5 {[%emt 0:00:15]} c5 {[%emt 0:00:06]} 4. Nf3 {[%emt 0:00:04]} cxd4 {[%emt 0:00:07]} 5. Nxd4 {[%emt 0:00:04]} Nc6 {[%emt 0:00:07]} 6. Nxc6 {[%emt 0:00:17]} bxc6 {[%emt 0:00:02]} 7. Bd3 {[%emt 0:00:07]} e6 {[%emt 0:00:06]} 8. O-O {[%emt 0:00:04]} a5 {[%emt 0:00:04]} 9. c4 {[%emt 0:00:12]} Ne7 {[%emt 0:05:26]} 10. Nd2 {[%emt 0:00:09]} Ng6 {[%emt 0:00:39]} 11. Nf3 {[%emt 0:00:06]} Be7 {[%emt 0:00:22]} 12. Qe2 {[%emt 0:02:12]} O-O {[%emt 0:00:25]} 13. g3 {[%emt 0:01:49]} dxc4 {[%emt 0:02:08]} 14. Bxc4 {[%emt 0:00:06]} Qc7 {[%emt 0:00:09]} 15. h4 {[%emt 0:01:37]} Rd8 {[%emt 0:00:10]} 16. h5 {[%emt 0:00:20]} Nf8 {[%emt 0:00:08]} 17. h6 {[%emt 0:03:36]} Ng6 {[%emt 0:00:07]} 18. Bd3 {[%emt 0:05:20]} Rxd3 {[%emt 0:19:39]} 19. Qxd3 {[%emt 0:00:05]} Ba6 {[%emt 0:00:08]} 20. Qe4 {[%emt 0:05:37]} Bb7 {[%emt 0:16:03]} 21. Qg4 {[%emt 0:13:31]} c5 {[%emt 0:00:11]} 22. Kh2 {[%emt 0:05:52]} Qc6 {[%emt 0:12:29]} 23. Ne1 {[%emt 0:00:43]} Rd8 {[%emt 0:02:00]} 24. f4 {[%emt 0:07:01]} gxh6 {[%emt 0:07:16]} 25. Be3 {[%emt 0:04:25]} Qe4 {[%emt 0:10:43]} 26. Qf3 {[%emt 0:03:02]} Qc4 {[%emt 0:00:17]} 1/2-1/2

[Event "ECo-C Extraliga 2023-24"]
[Site "Slovakia"]
[Date "2024.02.24"]
[Round "7.1"]
[White "Jablonicky, Martin"]
[Black "Ftacnik, Lubomir"]
[Result "1/2-1/2"]
[ECO "A48"]
[WhiteElo "2377"]
[BlackElo "2438"]
[Annotator "TA"]
[PlyCount "96"]
[EventDate "2023.10.06"]
[EventType "team-tourn"]
[EventCountry "SVK"]
[SourceTitle "playchess.com"]
[Source "ChessBase"]
[SourceQuality "1"]
[TimeControl "40/5400+30:1800+30"]

{[%evp 14,96,22,8,22,-9,-23,-22,-4,-10,-9,-41,-28,-37,-35,-83,-75,-98,-95,-95,-95,-89,-90,-71,-31,-34,-31,-19,-21,-22,-32,-20,-26,-22,-26,-28,-11,-13,-3,-13,4,0,1,-44,-31,-45,-39,-64,-37,-91,-91,-95,-94,-208,-204,-208,-175,-175,-175,-175,-175,-188,-189,-182,-158,-158,-143,-151,0,0,0,0,0,0,0,0,0,0,0,0,0,0,0,0,0]} 1. Nf3 {[%emt 0:00:04]} Nf6 {[%emt 0:00:21]} 2. d4 {[%emt 0:00:23]} g6 {[%emt 0:00:16]} 3. Bf4 {[%emt 0:01:08]} Bg7 {[%emt 0:00:10]} 4. e3 {[%emt 0:00:05]} O-O {[%emt 0:01:30]} 5. Be2 {[%emt 0:00:51]} c5 {[%emt 0:02:52]} 6. O-O {[%emt 0:07:01]} d6 {[%emt 0:09:33]} 7. h3 {[%emt 0:19:59]} Nc6 {[%emt 0:06:19]} 8. c3 {[%emt 0:02:16]} cxd4 {[%emt 0:17:39]} 9. cxd4 {[%emt 0:05:09]} Qb6 {[%emt 0:02:03][%cal Of6d5]} 10. Nbd2 {[%emt 0:02:11]} Be6 {[%emt 0:05:15][%cal Oa8c8]} 11. Ng5 {[%emt 0:08:26]} Bd5 {[%emt 0:01:55]} 12. Qb1 {[%emt 0:32:38]} e5 {[%emt 0:10:03]} 13. Bg3 {[%emt 0:00:51]} h6 {[%emt 0:04:24]} ({Of course not} 13... exd4 14. e4 Rfe8 15. Bg4 $14) 14. Ngf3 {[%emt 0:02:16]} (14. dxe5 $15 {deserves consideration.} Nxe5 15. Nge4) 14... exd4 $17 {[%emt 0:07:08]} 15. Nxd4 {[%emt 0:04:19]} Nxd4 {[%emt 0:01:14]} 16. exd4 {[%emt 0:00:05]} Rfe8 {[%emt 0:00:52]} 17. Bf3 {[%emt 0:03:02]} Qxd4 {[%emt 0:07:32]} 18. Rd1 {[%emt 0:00:55][%cal Od2e4]} Bxf3 {[%emt 0:02:55]} 19. Nxf3 {[%emt 0:00:09]} Qa4 {[%emt 0:01:50]} 20. Rd4 {[%emt 0:04:53] Against Ne4} Qb5 {[%emt 0:07:00]} 21. a4 {[%emt 0:00:45]} Qe2 {[%emt 0:01:38] And now ...Ne4 would win.} 22. Rd2 {[%emt 0:01:54]} Qe4 {[%emt 0:03:14]} 23. Bxd6 {[%emt 0:00:57]} Qxb1+ {[%emt 0:01:09]} 24. Rxb1 {[%emt 0:00:05]} Ne4 {[%emt 0:00:04]} 25. Rdd1 {[%emt 0:00:04]} Rac8 {[%emt 0:00:14]} 26. Bf4 Rc2 {[%emt 0:00:20]} 27. Be3 {[%emt 0:02:03]} Bxb2 {[%emt 0:00:42]} 28. Nd4 {[%emt 0:00:54]} Bxd4 {[%emt 0:00:16]} 29. Bxd4 {[%emt 0:00:05]} b6 {[%emt 0:00:30]} 30. a5 {[%emt 0:00:55]} Nd2 {[%emt 0:00:57]} 31. Ra1 {[%emt 0:01:00]} (31. Re1 $15 Rd8 32. Rb4) 31... Nb3 {[%emt 0:01:00][%csl LRa1,LRa5]} 32. axb6 {[%emt 0:00:09]} axb6 {[%emt 0:02:44]} 33. Bxb6 {[%emt 0:00:48]} (33. Rab1 $17 Nxd4 34. Rxd4) 33... Nxa1 $19 {[%emt 0:00:08]} 34. Rxa1 $17 {[%emt 0:00:03][%mdl 4096] Endgame. KRR-KRB} Rc6 {[%emt 0:00:30]} 35. Be3 {[%emt 0:00:10]} g5 {[%emt 0:00:23]} 36. g4 {[%emt 0:00:22]} Kg7 {[%emt 0:00:27]} 37. Kg2 {[%emt 0:00:13]} Kg6 {[%emt 0:00:08]} 38. Ra5 {[%emt 0:00:08]} Ree6 {[%emt 0:00:49]} 39. h4 {[%emt 0:00:52]} gxh4 {[%emt 0:00:38]} 40. Rh5 {[%emt 0:00:04] [#]} Rxe3 $2 {[%emt 0:00:56]} 41. fxe3 {[%emt 0:30:08] KR-KR. The position is equal.} Rc2+ {[%emt 0:30:17]} 42. Kh3 {[%emt 0:02:30]} Rc1 {[%emt 0:00:00]} 43. Rf5 {[%emt 0:00:00]} Rh1+ {[%emt 0:00:00]} 44. Kg2 {[%emt 0:00:00]} Re1 {[%emt 0:00:00]} 45. Rf3 {[%emt 0:00:00]} f6 {[%emt 0:00:00]} 46. Kh3 {[%emt 0:00:00]} Rh1+ {[%emt 0:00:00]} 47. Kg2 {[%emt 0:00:00]} Ra1 {[%emt 0:00:00]} 48. Kh3 {[%emt 0:00:00]} Rh1+ {[%emt 0:00:00] Whites escaped into a draw.   Weighted Error Value: White=0.12 (very precise) /Black=0.11 (very precise) .  Mistake:       	White=3     	Black=1      Inaccurate:     	White=3     	Black=2      OK:         	White=17    	Black=16     Best:        	White=1     	Black=2} 1/2-1/2